[Event "TUR-ch Veterans 2020"]
[Site "Antalya-Belek"]
[Date "2020.01.25"]
[Round "9"]
[White "Oney, Riza"]
[Black "Tozaki, Halil"]
[Result "0-1"]
[ECO "A36"]
[WhiteElo "1771"]
[BlackElo "1880"]
[Annotator "NA RC"]
[PlyCount "84"]
[EventDate "2020.01.19"]
[EventCountry "TUR"]
[SourceTitle "playchess.com"]
[Source "ChessBase"]
[SourceQuality "1"]
[TimeControl "5400+30"]

{[%evp 8,84,36,32767,32767,32767,32767,32767,32767,32767,32767,32767,32767,32767,32767,32767,32767,32767,25,25,24,22,34,8,32767,32767,32767,32767,32767,15,52,12,18,0,4,32767,32767,32767,32767,32767,32767,91,115,32767,111,32767,108,100,32767,32767,108,32767,32767,32767,32767,43,40,31,241,254,32767,1155,1265,1370,1241,32767,5343,29974,29976,32767,788,32767,32767,2221,1289,419,32767,32767,-1669]} 1. c4 {[%emt 0:00:30]} c5 {[%emt 0:00:30]} 2. Nc3 {[%emt 0:00:30]} Nf6 {[%emt 0:00:30]} 3. g3 {[%emt 0:00:30]} Nc6 {[%emt 0:00:30]} 4. Bg2 {[%emt 0:00:00]} g6 {[%emt 0:00:30]} 5. e3 {[%emt 0:00:00]} Bg7 {[%emt 0:00:30]} 6. Nge2 {[%emt 0:00:30]} d6 {[%emt 0:00:30]} 7. d3 {[%emt 0:01:30]} O-O {[%emt 0:00:00]} 8. O-O {[%emt 0:01:30]} Rb8 {[%emt 0:02:00] A36: Symmetrical English vs ...g6: 4 Bg2 Bg7} (8... Bd7 9. h3 a6 10. b3 Rb8 11. Bb2 b5 12. Qd2 Qa5 13. Rfd1 Rfc8 14. Kh2 e6 15. f4 h5 16. Bf3 e5 17. Bg2 {½-½ (51) Alekseev,E (2620)-Rakhmanov,A (2645) Moscow 2019}) 9. Qd2 $146 {[%emt 0:02:30]} ({Predecessor:} 9. a3 Bf5 10. h3 e5 11. Rb1 Qd7 12. Kh2 a6 13. f4 Be6 14. Nd5 exf4 15. gxf4 Nh5 16. b4 {0-1 (33) Basso,P (2322)-Hansen,T (2476) Oslo 2014}) 9... Bd7 {[%emt 0:02:30]} 10. Rb1 {[%emt 0:00:30]} a6 {[%emt 0:00:30]} 11. Nf4 {[%emt 0:01:30]} Bf5 {[%emt 0:05:30]} 12. b3 {[%emt 0:01:30]} e5 {[%emt 0:13:30]} 13. Nfd5 {[%emt 0:00:30]} Nxd5 {[%emt 0:06:30]} 14. Nxd5 {[%emt 0:00:30]} a5 {[%emt 0:01:30]} 15. a3 {[%emt 0:02:30]} Be6 {[%emt 0:05:30]} 16. Bb2 {[%emt 0:04:30]} f5 {[%emt 0:01:30]} 17. f4 {[%emt 0:01:30]} Bf7 {[%emt 0:06:30]} 18. Bc3 {[%emt 0:10:30]} Kh8 {[%emt 0:04:30]} 19. Rbe1 {[%emt 0:05:30]} b5 {[%emt 0:02:30]} 20. e4 {[%emt 0:10:30]} b4 {[%emt 0:01:30]} 21. axb4 {[%emt 0:01:30]} axb4 {[%emt 0:00:30]} 22. Bb2 {[%emt 0:00:30]} Nd4 {[%emt 0:00:30]} 23. Bxd4 {[%emt 0:00:30]} exd4 {[%emt 0:01:30]} 24. exf5 {[%emt 0:00:30]} gxf5 {[%emt 0:02:30]} 25. Ne7 {[%emt 0:03:30]} Be8 {[%emt 0:03:30]} 26. Qe2 {[%emt 0:00:30]} Rf6 {[%emt 0:03:30]} 27. Nd5 {[%emt 0:03:30]} Rf8 {[%emt 0:03:30]} 28. Ne7 {[%emt 0:03:30]} Rf6 $1 {[%emt 0:02:30]} 29. Ra1 {[%emt 0:05:30]} Bd7 {[%emt 0:01:30]} 30. Nc6 {[%emt 0:01:30]} Qe8 {[%emt 0:06:30]} 31. Nxb8 {[%emt 0:07:30]} Qxe2 {[%emt 0:00:30]} 32. Rfe1 {[%emt 0:00:30] [#]} Qxd3 $2 {[%emt 0:11:17]} ({Black should play} 32... Qxe1+ $1 $14 {[%mdl 512]} 33. Rxe1 Re6) 33. Nxd7 {[%emt 0:00:30]} Rf8 {[%emt 0:01:06]} 34. Nxf8 {[%emt 0:00:30]} Bxf8 {[%emt 0:00:11]} 35. Ra8 {[%emt 0:00:30]} Kg7 {[%emt 0:00:22]} 36. Ree8 {[%emt 0:01:30]} Qxb3 {[%emt 0:02:13]} 37. Ra7+ {[%emt 0:00:30]} Kf6 {[%emt 0:03:16]} 38. Rxf8+ {[%emt 0:01:30]} Kg6 {[%emt 0:00:22]} 39. Rg8+ {[%emt 0:01:30]} Kh6 {[%emt 0:00:13]} 40. h3 {[%emt 0:06:30]} Qxc4 {[%emt 0:02:34]} 41. Rg5 {[%emt 0:04:23]} (41. Rgg7 $142 Qc1+ 42. Kh2) 41... d3 {[%emt 0:00:56]} 42. Rag7 {[%emt 0:01:01]} Qd4+ $19 {[%emt 0:00:33]} 0-1

[Event "TUR-ch Veterans 2020"]
[Site "Antalya-Belek"]
[Date "2020.01.25"]
[Round "9"]
[White "Topaloglu, Hayati"]
[Black "Yuksel, Mustafa"]
[Result "0-1"]
[ECO "B07"]
[WhiteElo "1750"]
[BlackElo "2004"]
[Annotator "NA RC"]
[PlyCount "112"]
[EventDate "2020.01.19"]
[EventCountry "TUR"]
[SourceTitle "playchess.com"]
[Source "ChessBase"]
[SourceQuality "1"]
[TimeControl "5400+30"]

1. e4 {[%emt 0:00:30]} g6 {[%emt 0:00:30]} 2. d4 {[%emt 0:00:30]} Bg7 {[%emt 0:00:00]} 3. Nf3 {[%emt 0:00:30]} d6 {[%emt 0:00:00]} 4. Bc4 {[%emt 0:00:30]} c6 {[%emt 0:00:30]} 5. c3 {[%emt 0:01:30]} Nf6 {[%emt 0:00:30]} 6. Nbd2 {[%emt 0:00:30]} O-O {[%emt 0:04:30]} 7. O-O {[%emt 0:00:30]} d5 {[%emt 0:01:30] B07: Pirc Defence: Miscellaneous Systems} 8. e5 $146 {[%emt 0:02:30]} ({Predecessor:} 8. Bd3 b6 9. e5 Ne8 10. Qe2 Nc7 11. Re1 Ba6 12. Bxa6 Nbxa6 13. Nf1 b5 14. h4 Ne6 15. Ng5 {½-½ (52) Koellner,R (2274)-Kaufhold,T (2075) Muenster 2018}) 8... dxc4 {[%emt 0:00:30]} 9. exf6 {[%emt 0:00:30]} exf6 {[%emt 0:00:30]} 10. Nxc4 {[%emt 0:00:00]} Be6 {[%emt 0:03:30]} 11. Ne3 {[%emt 0:01:00]} Qb6 {[%emt 0:07:30]} 12. b3 {[%emt 0:00:30]} a5 {[%emt 0:00:30]} 13. Nd2 {[%emt 0:03:30]} Na6 {[%emt 0:03:30]} 14. a4 {[%emt 0:04:30]} Rfd8 {[%emt 0:01:30]} 15. Bb2 {[%emt 0:03:30]} (15. Ndc4 $11 {keeps the balance.} Qc7 16. Bd2) 15... c5 {[%emt 0:01:30]} 16. Ndc4 {[%emt 0:02:30]} Bxc4 {[%emt 0:04:30]} 17. Nxc4 {[%emt 0:00:30]} Qc6 {[%emt 0:07:30]} 18. Nxa5 {[%emt 0:00:30]} Qc7 {[%emt 0:00:00]} 19. Nc4 {[%emt 0:00:30]} cxd4 {[%emt 0:00:00]} 20. cxd4 {[%emt 0:03:30]} Nb4 {[%emt 0:03:30]} 21. Qd2 {[%emt 0:03:30]} Nd5 {[%emt 0:00:30]} 22. Rac1 {[%emt 0:01:30]} Qd7 {[%emt 0:00:30]} 23. Rfd1 {[%emt 0:00:30]} b5 {[%emt 0:00:30]} 24. axb5 {[%emt 0:02:30]} Qxb5 {[%emt 0:00:30]} 25. Qd3 {[%emt 0:06:30]} Rab8 {[%emt 0:00:30]} 26. Ne3 {[%emt 0:02:30]} Qxb3 {[%emt 0:02:30]} 27. Qxb3 {[%emt 0:05:30]} Rxb3 {[%emt 0:00:00]} 28. Nxd5 {[%emt 0:01:30]} Rxb2 {[%emt 0:02:00]} 29. Ne3 {[%emt 0:00:30]} f5 {[%emt 0:00:30]} 30. d5 {[%emt 0:00:30]} Bh6 {[%emt 0:00:30]} 31. Rc2 {[%emt 0:01:30]} Rb5 {[%emt 0:02:30]} 32. d6 {[%emt 0:01:30]} Bxe3 {[%emt 0:00:30]} 33. fxe3 {[%emt 0:00:30]} Rb6 {[%emt 0:02:30]} 34. d7 {[%emt 0:01:30]} Kf8 {[%emt 0:01:30]} 35. Kf2 {[%emt 0:04:30]} Ke7 {[%emt 0:01:30]} 36. Rcd2 {[%emt 0:02:30]} Rb7 {[%emt 0:00:30]} 37. Kf3 {[%emt 0:00:00]} Rbxd7 {[%emt 0:00:00]} 38. Rxd7+ {[%emt 0:00:00]} Rxd7 {[%emt 0:00:00]} 39. Rxd7+ {[%emt 0:01:30]} Kxd7 {[%emt 0:00:30]} 40. Kf4 {[%emt 0:00:30]} f6 {[%emt 0:00:30]} 41. e4 {[%emt 0:00:30]} fxe4 {[%emt 0:00:00]} 42. Kxe4 {[%emt 0:00:30]} Ke6 {[%emt 0:00:00]} 43. h4 {[%emt 0:01:30]} h6 {[%emt 0:02:30]} 44. Kf4 {[%emt 0:01:30]} f5 {[%emt 0:00:30]} 45. g3 {[%emt 0:02:30] [#]} Kf6 $1 {[%emt 0:01:30]} 46. Kf3 {[%emt 0:04:30]} Ke5 {[%emt 0:00:30]} 47. Ke3 {[%emt 0:00:30]} g5 {[%emt 0:00:30]} 48. hxg5 {[%emt 0:01:30]} hxg5 {[%emt 0:00:30]} 49. Kf3 {[%emt 0:01:30]} Kd4 {[%emt 0:00:30]} 50. Kf2 {[%emt 0:01:30]} Ke4 {[%emt 0:00:00]} 51. Ke2 {[%emt 0:00:30]} g4 {[%emt 0:00:00]} 52. Kf2 {[%emt 0:00:30]} Kd3 {[%emt 0:00:30]} 53. Kf1 {[%emt 0:02:30]} Ke3 {[%emt 0:00:00]} 54. Kg2 {[%emt 0:00:30]} Ke2 {[%emt 0:00:00]} 55. Kg1 {[%emt 0:00:30]} Kf3 {[%emt 0:00:30]} 56. Kh2 {[%emt 0:00:30]} Kf2 $19 {[%emt 0:00:00]} 0-1

[Event "TUR-ch Veterans 2020"]
[Site "Antalya-Belek"]
[Date "2020.01.25"]
[Round "9"]
[White "Sayman, Tevfik"]
[Black "Buker, Muhittin"]
[Result "1/2-1/2"]
[ECO "C59"]
[WhiteElo "1654"]
[BlackElo "2008"]
[Annotator "NA RC"]
[PlyCount "149"]
[EventDate "2020.01.19"]
[EventCountry "TUR"]
[SourceTitle "playchess.com"]
[Source "ChessBase"]
[SourceQuality "1"]
[TimeControl "5400+30"]

1. e4 {[%emt 0:00:30]} e5 {[%emt 0:00:30]} 2. Nf3 {[%emt 0:00:30]} Nc6 {[%emt 0:00:30]} 3. Bc4 {[%emt 0:00:30]} Nf6 {[%emt 0:00:30]} 4. Ng5 {[%emt 0:00:30]} d5 {[%emt 0:00:00]} 5. exd5 {[%emt 0:00:00]} Na5 {[%emt 0:00:00]} 6. Bb5+ {[%emt 0:00:00]} c6 {[%emt 0:00:00]} 7. dxc6 {[%emt 0:00:00]} bxc6 {[%emt 0:00:00]} 8. Be2 {[%emt 0:02:00]} h6 {[%emt 0:00:00]} 9. Nf3 {[%emt 0:00:00]} e4 {[%emt 0:00:00]} 10. Ne5 {[%emt 0:00:00]} Bd6 {[%emt 0:00:30]} 11. d4 {[%emt 0:00:30]} exd3 {[%emt 0:00:30]} 12. Nxd3 {[%emt 0:01:30]} Qc7 {[%emt 0:00:30]} 13. h3 {[%emt 0:02:30]} O-O {[%emt 0:00:30]} 14. O-O {[%emt 0:00:30]} Re8 {[%emt 0:00:30] C59: Two Knights: 4 Ng5 d5 5 exd5 Na5 5 Bb5+ c6 6 dxc6 bxc6 7 Be2} (14... c5 15. b3 c4 16. bxc4 Nxc4 17. Nd2 Nxd2 18. Bxd2 Bf5 19. Bf3 Rac8 20. Re1 Rfd8 21. a4 Qxc2 22. Nb4 Qb2 {0-1 (30) Zeng,C (2535)-Harikrishna,P (2729) China 2018}) 15. Nc3 {[%emt 0:02:30]} Ba6 {[%emt 0:00:00]} 16. Re1 {[%emt 0:03:30]} Rad8 {[%emt 0:00:00]} 17. Bf3 $146 {[%emt 0:01:30]} ({Predecessor:} 17. Bf1 c5 18. Rxe8+ Rxe8 19. Bd2 Nc4 20. Kh1 {½-½ (40) Kottcamp,J (1723)-Maser,T (1979) San Francisco 2013}) 17... Rxe1+ {[%emt 0:03:30]} 18. Qxe1 {[%emt 0:00:30]} Nb7 {[%emt 0:02:30]} (18... Re8 $11 {remains equal.} 19. Qd1 c5) 19. Ne4 {[%emt 0:02:30]} Be7 {[%emt 0:01:30]} (19... Nxe4 $16 20. Bxe4 (20. Qxe4 Bh2+ 21. Kh1 Bxd3 $14) 20... c5) 20. Bf4 {[%emt 0:01:30]} Qb6 {[%emt 0:01:30]} (20... Qc8 {was worth a try.} 21. Nxf6+ Bxf6) 21. Rd1 {[%emt 0:03:30]} Nd5 {[%emt 0:01:30]} 22. Be3 {[%emt 0:04:30]} (22. Bg3 $18) 22... Nxe3 {[%emt 0:00:30]} 23. Qxe3 {[%emt 0:00:30]} c5 {[%emt 0:00:30]} (23... Bxd3 $14 24. Qxb6 (24. cxd3 Nc5 $14) (24. Rxd3 Qxb2 25. Qxa7 Bf8 $16) 24... axb6 25. cxd3 (25. Rxd3 Rxd3 26. cxd3 Nd8 $14) 25... Na5) 24. b3 {[%emt 0:03:30]} Qa5 {[%emt 0:01:30] [#]} (24... c4 $16) 25. a4 {[%emt 0:01:30]} (25. c4 $1 $18 {has better winning chances.}) 25... c4 {[%emt 0:00:00]} 26. Nb2 {[%emt 0:04:30]} Rxd1+ {[%emt 0:02:00]} 27. Bxd1 {[%emt 0:00:30]} cxb3 {[%emt 0:03:30]} 28. cxb3 {[%emt 0:00:30]} Nc5 {[%emt 0:00:30] [#]} 29. Nc4 {[%emt 0:07:30]} ({White has to play} 29. Nf6+ $1 $16 {[%mdl 512]} gxf6 (29... Bxf6 30. Qe8+) 30. Qxe7 {[%mdl 64] Double Attack}) 29... Qd8 {[%emt 0:03:30]} 30. Bc2 {[%emt 0:08:30]} Qc7 {[%emt 0:07:30] [#]} (30... Bxc4 $14 31. bxc4 Nxe4 32. Qxe4 g6) 31. Nxc5 {[%emt 0:07:30]} (31. Nf6+ $1 $18 Kf8 32. Nd5) 31... Qxc5 {[%emt 0:00:30]} 32. Qxc5 $14 {[%emt 0:03:30] stays ahead.} (32. Ne5 $2 {[%emt 0:03:30][%mdl 8192]}) 32... Bxc5 {[%emt 0:00:30]} 33. Ne5 {[%emt 0:00:30]} (33. Be4) 33... Bb7 {[%emt 0:00:30]} 34. Bd3 {[%emt 0:00:30]} Bd4 {[%emt 0:00:30]} 35. Nc4 {[%emt 0:00:30]} Kf8 {[%emt 0:00:30]} 36. Nd6 {[%emt 0:02:30]} Bc6 {[%emt 0:04:30]} 37. Bc4 {[%emt 0:02:30]} f6 {[%emt 0:00:30]} 38. Kf1 {[%emt 0:00:30]} Bc5 {[%emt 0:00:30]} 39. Nf5 {[%emt 0:01:30]} Bd7 {[%emt 0:01:30]} 40. Ne3 {[%emt 0:00:30]} Ke7 {[%emt 0:00:30]} 41. Ke2 {[%emt 0:00:30]} f5 {[%emt 0:00:30]} 42. Nd5+ {[%emt 0:04:30]} Kd6 {[%emt 0:00:30]} 43. b4 {[%emt 0:00:00]} Bd4 {[%emt 0:00:00]} 44. a5 {[%emt 0:04:00]} g5 {[%emt 0:05:00]} 45. f3 {[%emt 0:00:30]} Ke5 {[%emt 0:02:30]} 46. Kd3 {[%emt 0:02:30]} Bf2 {[%emt 0:00:30]} 47. b5 {[%emt 0:01:30]} Kd6 {[%emt 0:00:30]} 48. b6 {[%emt 0:03:30]} axb6 {[%emt 0:01:30]} 49. Nxb6 {[%emt 0:00:30]} Bc6 {[%emt 0:01:30]} 50. Nc8+ {[%emt 0:05:07]} Kd7 {[%emt 0:01:30]} 51. Nb6+ {[%emt 0:00:49]} Kc7 {[%emt 0:00:00]} 52. Nd5+ {[%emt 0:01:39]} Kd6 {[%emt 0:00:00]} 53. Ne3 {[%emt 0:00:41]} Ke5 {[%emt 0:08:30]} 54. Ke2 {[%emt 0:03:18]} Bg1 {[%emt 0:00:30]} 55. g3 $2 {[%emt 0:02:00]} (55. Bd3 $16) 55... Kd4 {[%emt 0:00:30]} 56. Nxf5+ {[%emt 0:02:58]} Kxc4 {[%emt 0:00:30]} 57. Nxh6 {[%emt 0:00:00]} Bd5 {[%emt 0:00:00]} 58. Nf5 {[%emt 0:00:20]} Be6 {[%emt 0:01:00]} 59. Ne3+ {[%emt 0:02:21]} (59. Nd6+ $142 Kc5 60. Ne4+ Kd4 61. Nxg5 Bc4+ 62. Kd1) 59... Kb5 {[%emt 0:00:00]} 60. h4 {[%emt 0:00:00]} gxh4 {[%emt 0:02:00]} 61. gxh4 {[%emt 0:00:15]} Bf7 {[%emt 0:00:30]} 62. f4 {[%emt 0:00:46]} Kxa5 {[%emt 0:00:30]} 63. Kf3 {[%emt 0:00:15]} Bh5+ {[%emt 0:00:30]} 64. Ke4 {[%emt 0:00:22]} Bf2 {[%emt 0:00:30]} 65. Ng2 {[%emt 0:01:12]} Kb5 {[%emt 0:00:00]} 66. f5 {[%emt 0:00:00]} Kc6 {[%emt 0:00:00]} 67. Nf4 {[%emt 0:00:36]} Bd1 {[%emt 0:00:00]} 68. h5 {[%emt 0:00:00]} Kd6 {[%emt 0:00:00]} 69. h6 {[%emt 0:00:03]} Bc2+ {[%emt 0:00:30]} 70. Kf3 {[%emt 0:00:57]} Bd4 {[%emt 0:01:30]} 71. Kg4 {[%emt 0:00:35]} Ke5 {[%emt 0:01:30]} 72. Kg5 {[%emt 0:03:18]} Bxf5 $11 {[%emt 0:01:30]} ({Not} 72... Be3 $2 73. h7 $18) 73. Ng6+ {[%emt 0:00:05]} Ke6 {[%emt 0:00:30]} 74. h7 {[%emt 0:00:07]} Bf6+ {[%emt 0:02:30]} 75. Kh6 {[%emt 0:01:34]} 1/2-1/2

[Event "TUR-ch Veterans 2020"]
[Site "Antalya-Belek"]
[Date "2020.01.25"]
[Round "9"]
[White "Hatipoglu, Metin"]
[Black "Tofan, Ibrahim"]
[Result "0-1"]
[ECO "A34"]
[WhiteElo "1570"]
[BlackElo "2082"]
[Annotator "NA RC"]
[PlyCount "116"]
[EventDate "2020.01.19"]
[EventCountry "TUR"]
[SourceTitle "playchess.com"]
[Source "ChessBase"]
[SourceQuality "1"]
[TimeControl "5400+30"]

{[%evp 8,111,14,10,32767,-13,10,32767,32767,-50,-20,-27,-34,-74,32767,32767,32767,-45,-38,-114,-104,-97,-100,-104,-88,-91,-94,-93,-78,-104,32767,-87,-90,-97,-76,32767,32767,-114,32767,32767,32767,-87,32767,32767,32767,-118,-71,32767,-110,-205,-232,32767,32767,32767,32767,32767,32767,32767,0,-141,-97,32767,-43,32767,32767,32767,32767,32767,32767,32767,-79,-147,-107,32767,-32,-149,-152,-235,-225,-191,-244,-315,-320,-300,-315,-331,-341,-361,32767,32767,32767,-591,-654,-729,-770,-727,32767,32767,-779,-677,32767,32767,-660,-514,-821,-690]} 1. e4 {[%emt 0:00:30]} d6 {[%emt 0:00:30]} 2. c4 {[%emt 0:00:30]} Nf6 {[%emt 0:01:30]} 3. Nc3 {[%emt 0:00:00]} c5 {[%emt 0:01:30]} 4. Nge2 {[%emt 0:05:00]} e5 {[%emt 0:04:30]} (4... Qa5 5. g3 h5 6. h3 Nc6 7. Bg2 Nd4 8. O-O h4 9. g4 Nxg4 10. hxg4 h3 11. Bh1 h2+ 12. Kg2 Bxg4 {1-0 (66) Liang,J (2455)-Liu,Q (2503) Beijing 2017}) 5. d3 {[%emt 0:01:30]} Nc6 {[%emt 0:00:30]} 6. h3 {[%emt 0:03:30] A34: Symmetrical English: 2 Nc3, lines with ...d5} Be6 {[%emt 0:06:30]} 7. Bg5 $146 {[%emt 0:03:30]} ({Predecessor:} 7. f4 g6 8. g4 exf4 9. Bxf4 Ne5 10. Bg2 Bg7 11. Qd2 a6 12. O-O O-O 13. g5 {0-1 (13) Kabajyan,K-Nikolishvili,Z (2150) Tbilisi 2002}) 7... Be7 {[%emt 0:00:30]} 8. Qd2 {[%emt 0:04:30]} h6 {[%emt 0:02:30]} 9. Bxf6 {[%emt 0:05:30]} Bxf6 {[%emt 0:00:30]} 10. Nd5 {[%emt 0:08:30]} Bg5 {[%emt 0:03:30]} 11. Qc2 {[%emt 0:04:30]} Bxd5 {[%emt 0:02:30]} 12. exd5 {[%emt 0:02:30]} Qa5+ {[%emt 0:07:30]} 13. Nc3 {[%emt 0:06:30]} (13. Qc3 $11 {remains equal.} Nb4 14. Kd1) 13... Nd4 {[%emt 0:02:30]} 14. Qd1 {[%emt 0:01:30]} b5 {[%emt 0:01:30]} 15. cxb5 {[%emt 0:01:30]} Nxb5 {[%emt 0:18:30]} 16. Qa4 {[%emt 0:01:30]} Qxa4 {[%emt 0:00:00]} 17. Nxa4 {[%emt 0:00:00]} Nd4 {[%emt 0:02:00]} 18. Kd1 {[%emt 0:02:00]} f5 {[%emt 0:00:30]} 19. h4 {[%emt 0:00:30]} Bf6 {[%emt 0:01:30]} 20. g3 {[%emt 0:07:30]} Rb8 {[%emt 0:00:30]} 21. Rb1 {[%emt 0:01:30]} O-O {[%emt 0:03:30]} 22. Bg2 {[%emt 0:01:30]} Rb4 {[%emt 0:03:30]} 23. b3 {[%emt 0:02:30]} Nb5 {[%emt 0:01:30]} 24. Rc1 {[%emt 0:03:30]} e4 {[%emt 0:04:30]} 25. dxe4 {[%emt 0:01:30]} fxe4 {[%emt 0:01:30]} 26. Ke2 {[%emt 0:12:03]} Nc7 {[%emt 0:05:30]} (26... Nd4+ $142 27. Ke3 {[#]} Nxb3 $1 {[%mdl 512]} 28. axb3 Rxb3+ 29. Kd2 Bd4) 27. Rhd1 {[%emt 0:03:25]} Bd4 {[%emt 0:00:30]} 28. f3 {[%emt 0:03:40]} (28. Rf1 $17 {was necessary.}) 28... Nxd5 {[%emt 0:00:30]} 29. f4 {[%emt 0:04:26]} Ne3 {[%emt 0:02:30]} 30. Rxd4 {[%emt 0:00:34]} cxd4 {[%emt 0:00:30]} 31. Bxe4 $1 $11 {[%emt 0:00:34] remains equal.} Nf5 {[%emt 0:05:11]} 32. Kf3 {[%emt 0:01:20] [#]} Ne3 {[%emt 0:05:41]} ({Black should play} 32... g5 $1 $17 33. hxg5 (33. fxg5 hxg5) 33... hxg5) 33. h5 {[%emt 0:00:50]} d5 {[%emt 0:00:31]} 34. Bg6 {[%emt 0:00:42] [#]} Nc4 $1 {[%emt 0:03:04]} 35. Nc5 {[%emt 0:02:21]} Ne5+ {[%emt 0:00:48]} 36. Kg2 {[%emt 0:00:59]} Nxg6 {[%emt 0:00:30]} 37. hxg6 {[%emt 0:00:00]} Rc8 {[%emt 0:00:22]} 38. Re1 {[%emt 0:00:00]} Rbb8 {[%emt 0:01:43]} ({Better is} 38... Rb6 $19 {has better winning chances.} 39. Re5 Rxg6 40. Rxd5 Rb6) 39. Nd7 {[%emt 0:00:44] [#]} (39. Ne6 $142) 39... Rb7 {[%emt 0:02:50]} ({Better is} 39... Rc2+ $1 $19 40. Kf3 Rbc8) 40. Nc5 {[%emt 0:02:39]} Rb5 $2 {[%emt 0:02:15] [#]} 41. Nd3 {[%emt 0:00:25]} (41. b4 $1 $15 {[%mdl 512]}) 41... Rc2+ {[%emt 0:00:41]} 42. Kf3 {[%emt 0:00:56] [#]} (42. Kh3 $17 {was necessary.} Kf8 43. b4) 42... Kf8 $1 {[%emt 0:01:00]} 43. Ne5 {[%emt 0:01:04]} Rb7 {[%emt 0:00:13]} 44. Rd1 {[%emt 0:00:43]} Rxa2 {[%emt 0:00:19]} 45. Rxd4 {[%emt 0:00:26]} Rxb3+ {[%emt 0:00:20]} 46. Kg4 {[%emt 0:00:11]} Rb5 {[%emt 0:01:39]} 47. Kf5 {[%emt 0:00:18]} Ra6 {[%emt 0:00:39]} 48. Nd3 {[%emt 0:01:12]} Rf6+ {[%emt 0:00:14]} 49. Ke5 {[%emt 0:00:26]} Rxg6 {[%emt 0:00:08]} 50. Nb4 {[%emt 0:01:15]} Rxg3 {[%emt 0:00:36]} 51. Nxd5 {[%emt 0:00:13]} Re3+ {[%emt 0:01:32]} 52. Kd6 {[%emt 0:00:28]} Re1 {[%emt 0:00:24]} 53. f5 {[%emt 0:01:14]} Kf7 {[%emt 0:00:18]} 54. Rc4 {[%emt 0:00:26]} Rxd5+ {[%emt 0:00:22]} 55. Kxd5 {[%emt 0:00:12]} Kf6 {[%emt 0:00:13]} 56. Ra4 $19 {[%emt 0:01:01]} a5 {[%emt 0:00:09]} 57. Kd6 {[%emt 0:00:56]} Re5 {[%emt 0:00:10]} 58. Rg4 {[%emt 0:00:39]} Rxf5 {[%emt 0:00:04]} 0-1